Cogmind - Beta 16.1 @@@ ROGUE MODE // 2026.02.13 @ 07:58:53 Player: deepledi Result: Destroyed by 7E-SKJ(R) with Subdweller Beam Cannon Performance ------------- Evolutions (0) 0 Regions Visited (3) 600 Robots Destroyed (25) 125 Value Destroyed (671) 671 Prototype IDs (0) 0 Alien Tech Used (0) 0 Bonus (-18) -18 TOTAL SCORE: 1378 Bonus ------- Friendly Fire -18 Cogmind --------- Core Integrity 0/250 Matter 286/300 Energy 150/150 System Corruption 0% Temperature Cool (9) Movement Walking (140) Location -10/Subcaves Parts ------- > --- POWER (1) -------- Light Angular Momentum Engine > --- PROPULSION (2) --- Makeshift Leg Subdweller Monowheel > --- UTILITY (2) ------ (None) > --- WEAPON (2) ------- Barrage Gun > --- INVENTORY (5) ---- Light Ion Engine Cobbler Unit Flamer Peak State ------------ > --- POWER ------------ Light Angular Momentum Engine > --- PROPULSION ------- Light Treads Subdweller Monowheel > --- UTILITY ---------- Cobbler Unit > --- WEAPON ----------- Heavy Assault Rifle Bore Cannon > --- INVENTORY -------- Light Ion Engine Makeshift Leg Scrap Shield Light Assault Rifle [Rating: 20] Favorites ----------- Power Light Nuclear Core Engine Light Ion Engine Power Core Light Nuclear Core Propulsion Aluminum Leg Treads Light Treads Leg Aluminum Leg Wheel Subdweller Monowheel Utility Small Storage Unit Device Cobbler Unit Storage Small Storage Unit Protection Light Armor Plating Weapon Heavy Assault Rifle Energy Gun Medium Laser Ballistic Gun Heavy Assault Rifle Ballistic Cannon Bore Cannon Build | -11 -10 -10 -10 ------- Run | Yrd Mat Min Sub Slots Evolved . | . . . . Power . | . . . . Propulsion . | . . . . Utility . | . . . . Weapon . | . . . . Parts Attached 33 | 6 7 9 11 Power 4 | 1 1 1 1 Engine 3 | 1 1 . 1 Core 1 | . . 1 . Reactor . | . . . . Propulsion 12 | 2 2 4 4 Treads 2 | . . 1 1 Leg 7 | 2 2 2 1 Wheel 3 | . . 1 2 Hover . | . . . . Flight . | . . . . Utility 9 | 1 3 1 4 Device 3 | . 1 . 2 Storage 1 | 1 . . . Processor . | . . . . Hackware . | . . . . Protection 5 | . 2 1 2 Artifact . | . . . . Weapon 8 | 2 1 3 2 Energy Gun 1 | . 1 . . Energy Cannon . | . . . . Ballistic Gun 6 | 2 . 3 1 Ballistic Cannon 1 | . . . 1 Launcher . | . . . . Special Weapon . | . . . . Impact Weapon . | . . . . Slashing Weapon . | . . . . Piercing Weapon . | . . . . Special Melee Weapon . | . . . . Unidentified Prototypes . | . . . . Parts Lost 5 | . . 1 4 Power . | . . . . Propulsion 1 | . . . 1 Utility 3 | . . 1 2 Weapon 1 | . . . 1 Highest Loss Streak 2 | . . 1 2 To Critical Strikes . | . . . . Average Backups 6 | 2 7 7 4 Power . | . 1 . 1 Propulsion 1 | 1 3 1 . Utility 2 | . 2 2 1 Weapon 1 | . 1 1 1 Tool/Special . | . . . . Unused Backups 4 | . 1 . 3 Power 1 | . . . 1 Propulsion 1 | . 1 . . Utility . | . . . . Weapon 2 | . . . 2 Tool/Special . | . . . . Average Slot Usage (%) 95 | . 99 100 84 Engine 7 | . 14 2 7 Core 6 | . . 11 6 Treads 4 | . . 2 13 Leg 17 | . 28 23 1 Wheel 4 | . . 2 13 Device 1 | . . 1 3 Storage 9 | . 14 14 . Protection 12 | . 13 12 10 Ballistic Gun 26 | . 26 28 23 Ballistic Cannon 1 | . . . 3 Peak Build Rating 20 | 6 7 12 20 Average Rating 11 | 3 6 10 16 On Entrance 6 | . 6 7 12 Avg Prop Armor Cover (%) 6 | . . 10 5 Naked Turns . | . . . . Heaviest Build 33 | 11 15 19 33 Greatest Support 20 | 20 20 20 20 Greatest Overweight (x) 3 | . . 1 3 Average Overweight (x) . | . . . . Largest Inventory Capacity 8 | 8 8 8 8 Average Capacity 7 | 6 8 8 5 Most Carried 8 | 6 8 8 8 Average Carried 6 | 3 7 7 4 Final Capacity 8 | 8 8 8 5 Final Carried 8 | 6 8 8 4 Class Distribution -------------------- 56% | Scavenger-Mutant 43% | Mutant Dominant Class ---------------- Mutant | -10/Materials Scavenger-Mutant | -10/Mines Scavenger-Mutant | -10/Subcaves Resources | -11 -10 -10 -10 ----------- Run | Yrd Mat Min Sub Matter Collected 1053 | 232 168 178 475 Remotely . | . . . . Salvage Created 805 | . 269 185 351 Parts 58 | . 15 21 22 Haulers Intercepted 1 | . 1 . . Recyclers Shooed . | . . . . Parts Field Recycled . | . . . . Retrieved Matter . | . . . . Parts Self-Destructed 9 | . . . 9 Prevented . | . . . . Parts Restored . | . . . . Kills | -11 -10 -10 -10 ------- Run | Yrd Mat Min Sub Combat Hostiles Destroyed 23 | . 7 8 8 Guns 18 | . 7 8 3 Cannons 5 | . . . 5 Classes Destroyed 6 | . 4 . 2 Hauler 1 | . 1 . . Operator 1 | . 1 . . Swarmer 9 | . 3 6 . Grunt 6 | . 4 2 . Cobbler 1 | . . . 1 Subdweller 8 | . . . 8 Best Kill Streak 5 | . 5 3 5 Combat Bots Only 5 | . 5 3 5 Max Kills in Single Turn 1 | . 1 1 1 Gunslinging . | . . . . Exploded . | . . . . Melee . | . . . . Uniques/NPCs Destroyed . | . . . . Combat | -11 -10 -10 -10 -------- Run | Yrd Mat Min Sub Hostile Shots Fired 133 | . 30 37 66 Missed 25 | . 3 5 17 Hits 108 | . 27 32 49 Projectile 108 | . 27 32 49 Critical Strikes 2 | . 1 . 1 Damage Taken 1947 | . 327 371 1249 Core 267 | . 56 77 134 Absorbed by Shields . | . . . . Core Remaining (%) 100 | 100 . . . Volleys Fired 82 | . 30 26 26 Largest 2 | . 2 2 2 Hottest 71 | . 70 43 71 Shots Fired 159 | . 60 47 52 Gun 149 | . 60 47 42 Cannon 10 | . . . 10 Launcher . | . . . . Special . | . . . . Kinetic 148 | . 49 47 52 Thermal 11 | . 11 . . Explosive . | . . . . Electromagnetic . | . . . . Robot Hit Streak 14 | . 5 14 14 Robot Miss Streak 6 | . 6 4 2 Penetration Max 1 | . . . 1 Secondary Targets . | . . . . Shots Hit Robots 97 | . 33 31 33 Core Hits 48 | . 17 17 14 Critical Kills 3 | . . . 3 Critical Parts Destroyed 1 | . . . 1 Critical Strikes 7 | . . . 7 Destroy 7 | . . . 7 Melee Attacks . | . . . . Impact . | . . . . Slashing . | . . . . Piercing . | . . . . Sneak Attacks . | . . . . Combat Hostiles . | . . . . Follow-up Attacks . | . . . . Damage Inflicted 1329 | . 392 283 654 Guns 1043 | . 374 272 397 Cannons 257 | . . . 257 Explosions . | . . . . Melee . | . . . . Ramming 29 | . 18 11 . Kinetic 1238 | . 312 272 654 Thermal 62 | . 62 . . Explosive . | . . . . Electromagnetic . | . . . . Impact . | . . . . Slashing . | . . . . Piercing . | . . . . Highest Corruption . | . . . . Average Corruption . | . . . . Corruption Purged . | . . . . Corruption Blocked . | . . . . Overload Shots . | . . . . Overflow Damage . | . . . . Projectiles . | . . . . Explosions . | . . . . Melee . | . . . . Knockbacks 3 | . . 1 2 Impact 1 | . . 1 . Kinetic 2 | . . . 2 Secondary . | . . . . Self-Inflicted Damage . | . . . . Shots . | . . . . Rammed . | . . . . Targets Rammed 6 | . 4 2 . Kicked 6 | . 4 2 . Crushed . | . . . . Highest Temperature 261 | . 231 54 261 Average Temperature 50 | . 66 14 129 Received Heat Transfer 830 | . 159 141 530 Effects 2 | . 1 . 1 Interference 2 | . 1 . 1 Siege Activations . | . . . . Martial Activations . | . . . . Shielding Activations . | . . . . Robots Disrupted . | . . . . Combat Hostiles . | . . . . Robots Corrupted . | . . . . Combat Hostiles . | . . . . Parts Fried . | . . . . Impact Corruptions . | . . . . Robots Melted . | . . . . Combat Hostiles . | . . . . Parts Melted . | . . . . Heat Transferred 185 | . 185 . . Parts Sabotaged . | . . . . Parts Stolen . | . . . . Parts Stripped . | . . . . Power Chain Reactions . | . . . . Alert | -11 -10 -10 -10 ------- Run | Yrd Mat Min Sub Maximum Alert Level . | . . . . Low Security (%) 100 | 100 100 100 . Level 1 . | . . . . Level 2 . | . . . . Level 3 . | . . . . Level 4 . | . . . . Level 5 . | . . . . High Security . | . . . . Max Security . | . . . . Peak Influence 110 | . 110 70 . Initial . | . . . . Average 19 | . 29 13 . Influence Increases 383 | . 193 190 . Destroy 0b10 Robot/C 300 | . 140 160 . Destroy 0b10 Robot/NC 10 | . 10 . . Destroy Leader 62 | . 32 30 . Successful Hack 11 | . 11 . . Influence Decreases 383 | . 193 190 . Time Decay 383 | . 193 190 . Squads Dispatched 1 | . 1 . . Investigation . | . . . . Extermination . | . . . . Reinforcement 1 | . 1 . . Assault . | . . . . Garrison . | . . . . Intercept . | . . . . Searches Triggered . | . . . . Construction Impeded . | . . . . Haulers Reinforced . | . . . . Active Scanning Responses . | . . . . Cargo Convoy Interrupts . | . . . . Stealth | -11 -10 -10 -10 --------- Run | Yrd Mat Min Sub Distress Signals 2 | . 2 . . Communications Jammed . | . . . . Distress Signals . | . . . . Times Spotted 44 | . 13 10 21 Peak Tracking Total 9 | . 4 3 9 Tactical Retreats . | . . . . Traps | -11 -10 -10 -10 ------- Run | Yrd Mat Min Sub Traps Triggered 1 | . . . 1 Indirectly . | . . . . Trap Hack Attempts . | . . . . Triggered . | . . . . Disarmed . | . . . . Reprogrammed . | . . . . Reused . | . . . . Traps Extracted . | . . . . Installed . | . . . . Triggered . | . . . . Machines | -11 -10 -10 -10 ---------- Run | Yrd Mat Min Sub Machines Disabled . | . . . . Max in Single Turn . | . . . . Machines Repaired . | . . . . Machines Dismantled . | . . . . Machines Sabotaged . | . . . . Overloaded Fab Kills . | . . . . Hacking | -11 -10 -10 -10 --------- Run | Yrd Mat Min Sub Machines Accessed 5 | . 5 . . Terminals 3 | . 3 . . Fabricators . | . . . . Repair Stations . | . . . . Recycling Units 2 | . 2 . . Scanalyzers . | . . . . Garrison Access . | . . . . Total Hacks 15 | . 15 . . Successful 7 | . 7 . . Failed 8 | . 8 . . Catastrophic . | . . . . Database Lockouts . | . . . . Manual 14 | . 14 . . Terminals 8 | . 8 . . Fabricators . | . . . . Repair Stations . | . . . . Recycling Units 7 | . 7 . . Scanalyzers . | . . . . Garrison Access . | . . . . Terminal Hacks 2 | . 2 . . Record 1 | . 1 . . Alert Level 1 | . 1 . . Fabricator Hacks . | . . . . Repair Station Hacks . | . . . . Recycling Unit Hacks . | . . . . Scanalyzer . | . . . . Garrison Access Hacks . | . . . . Unauthorized Hacks 5 | . 5 . . Terminals 3 | . 3 . . Botnet 3 | . 3 . . Fabricators . | . . . . Repair Stations . | . . . . Recycling Units 2 | . 2 . . Reject 2 | . 2 . . Scanalyzers . | . . . . Garrison Access . | . . . . Data Cores Recovered 1 | . 1 . . Used . | . . . . Hacking Detections 5 | . 5 . . Full Trace Events 1 | . 1 . . Feedback Events . | . . . . Feedback Blocked . | . . . . Robot Schematics Acquired . | . . . . Robots Built . | . . . . Authchips . | . . . . Time . | . . . . Total Robot Build Rating . | . . . . Part Schematics Acquired . | . . . . Parts Built . | . . . . Authchips . | . . . . Time . | . . . . Total Part Build Rating . | . . . . Part Studies Acquired . | . . . . Parts Repaired . | . . . . Time . | . . . . Parts Recycled . | . . . . Recycled Matter . | . . . . Retrieved Matter . | . . . . Retrieved Components . | . . . . Parts Scanalyzed . | . . . . Part Schematics Acquired . | . . . . Parts Damaged . | . . . . Bothacking | -11 -10 -10 -10 ------------ Run | Yrd Mat Min Sub Used RIF Installer . | . . . . Robots Hacked . | . . . . Non-combat . | . . . . Combat . | . . . . Robot Hacks Applied . | . . . . Relay Couplers Released . | . . . . Fabnet Peak Effective % . | . . . . Robots Rewired . | . . . . Allies Hacked . | . . . . Hacks Repelled . | . . . . Allies | -11 -10 -10 -10 -------- Run | Yrd Mat Min Sub Total Allies 3 | . . 3 . Largest Group 3 | . . 3 3 Highest-Rated Group 40 | . . 40 40 Highest-Rated Ally 16 | . . 16 16 Total Orders . | . . . . Ally Attacks 13 | . . . 13 Total Damage 135 | . . . 135 Kills . | . . . . Allies Corrupted . | . . . . Allies Melted 1 | . . . 1 Intel | -11 -10 -10 -10 ------- Run | Yrd Mat Min Sub Active Infowar (turns) 111 | . 23 80 8 Terrain 111 | . 23 80 8 Robot Analysis Total . | . . . . Derelict Logs Recovered 1 | . . 1 . Drone Launches . | . . . . Drone Recoveries . | . . . . Exploration | -11 -10 -10 -10 ------------- Run | Yrd Mat Min Sub Turns Passed 2312 | 64 628 918 702 Spaces Moved 1421 | 47 357 605 412 Core 13 | 12 . . 1 Treads 2 | . . . 2 Legs 927 | 35 357 513 22 Wheels 479 | . . 92 387 Hover . | . . . . Flight . | . . . . Fastest Speed 50 | 50 120 100 110 Average Speed 117 | 102 120 117 119 Slowest Speed 240 | 120 120 190 240 Overloaded Moves . | . . . . Propulsion Burnouts . | . . . . Robots Hopped . | . . . . Potential Cave-ins . | . . . . Cave-ins Triggered . | . . . . Exploration Rate (%) 53 | 4 69 99 42 Regions Visited 3 Branch Regions 2 Pre-discovered Areas 1 | . . . 1 Known Exits Taken . | . . . . Unknown Exits Taken 3 | 1 1 1 . Scrap Searched 1 | . . 1 . Spaces Dug . | . . . . Terrain Destroyed 2 | . . . 2 Melee . | . . . . Projectile 2 | . . . 2 AOE . | . . . . Terrain Rammed . | . . . . Walls Destroyed . | . . . . Machines Disabled . | . . . . Actions | -11 -10 -10 -10 --------- Run | Yrd Mat Min Sub Total 1911 | 61 498 777 575 Wait 311 | . 94 122 95 Move 1418 | 46 356 604 412 Hop . | . . . . Pick Up 24 | 9 3 4 8 Fast Attach 9 | 3 1 3 2 Attach 12 | 3 . 3 6 Detach 2 | . . 1 1 Swap 17 | . 7 4 6 Drop 28 | . 3 8 17 Fire 82 | . 30 26 26 Melee . | . . . . Ram . | . . . . Kick 6 | . 4 2 . Crush . | . . . . Escape Stasis . | . . . . Rewire . | . . . . Trap . | . . . . Miscellaneous 2 | . . . 2 Route ------- -11/Scrapyard -10/Materials (discovered 3 exits: [*Mat] / [*Min x2]) -10/Mines (discovered 3 exits: [*Mat x2] / [*Sub]) -10/Subcaves History --------- Turn | Location | Event 5 | -11/Scrapyard | Discovered new exit (range 16) 65 | -11/Scrapyard | Entered Materials 318 | -10/Materials | Build established: Mutant 323 | -10/Materials | Discovered new exit (range 7) 328 | -10/Materials | Discovered new exit (range 8) 463 | -10/Materials | Discovered new exit (range 8) 693 | -10/Materials | Entered Mines 767 | -10/Mines | Learned Materials machine intel 776 | -10/Mines | Discovered new exit (range 9) 875 | -10/Mines | Discovered new exit (range 12) 974 | -10/Mines | Joined a pair of Derelicts in attacking an 0b10 outpost 978 | -10/Mines | Core integrity fell below 50% 1142 | -10/Mines | Build established: Scavenger-Mutant 1346 | -10/Mines | Assisted by bots powering up and referring to "LRC-V3" 1566 | -10/Mines | Discovered new exit (range 9) 1611 | -10/Mines | Entered Subcaves 1611 | -10/Subcaves | Accompanied by 3 allies 1612 | -10/Subcaves | Approached by a straggling Scientist 1630 | -10/Subcaves | Learned location of Zion (-6) 1630 | -10/Subcaves | Met a Zionite searching for "candidates" 1796 | -10/Subcaves | Shifting Twisted Machinery released Sub. Monowheel 1803 | -10/Subcaves | Ambushed by swarm of Subdwellers 1807 | -10/Subcaves | Ambushed by Subdwellers from Twisted Machinery 1807 | -10/Subcaves | Ambushed by Subdwellers from Twisted Machinery 1831 | -10/Subcaves | Core integrity fell below 20% 1847 | -10/Subcaves | Ambushed by angry Subdweller bent on revenge 1864 | -10/Subcaves | Lost 5 allies 2313 | -10/Subcaves | Destroyed by 7E-SKJ(R) with Subdweller Beam Cannon Last Messages --------------- 02044_ Acquired Flamer. 02058_ 5R-IYJ(g) destroyed. 02062_ JC-80G(R) destroyed. 02066_ Acquired 30 matter. 02070_ Acquired 55 matter. 02155_ 8K-78K(R) destroyed. 02158_ Acquired 40 matter. 02161_ Scrap Shield Fragment affixed to Scrap Shield (+46). 02167_ Heat Sink fries itself beyond repair. 02169_ Dropped Sub. Monowheel. 02172_ Acquired 10 matter. 02199_ Critical hit (Meltdown: +290). 02200_ Acquired 14 matter. 02201_ Overheating: System interference. 02201_ Barrage Gun temporarily disabled. 02233_ 8B-VHG(u) tweaks Twisted Machinery. 02287_ Scrap Shield destroyed. 02288_ Hvy. Assault Rifle destroyed. 02302_ Sub. Monowheel shoots sparks and powers down. 02305_ Dropped Lgt. Treads. Map ----- +----------------------------------------------------+ | ???????????????????????????????????????????????? | | ???????????????????????????????????????????????? | | ???????????????????????????????????????????????? | | ???????????????????????????????????????????????? | | ???????????????????????????????????????????????? | | ???????????????????????????????????????????????? | | ???????????????????????????????????????????????? | | ???????????????????????????????????????????????? | | ???????????????????????????????????????????????? | | ???????????????????????????????????????????????? | | ???????????????????????????????????????????????? | | ???????????????????????????????????????????????? | | ???????????????????????????????????????????????? | | ???????????????????????????????????????????????? | | ???????????????????????????????????????????????? | | ???????????????????????????????????????????????? | | ??????????????????#????????????????????????????? | | ??????????????????# ???????????????????????????? | | ??????????????????# ???????????????????????????? | | ??????????????????# ??????????????????????????? | | ??????????????????? ??????????????????????????? | | ???????????????????# ?????????????????????????? | | ???????????????????# ?????????????????????????? | | ??????????????????## ??????##????????????????? | | ???????????????#### ######;###??????????????? | | ??????????????## @ ##?????????????? | | ??????????????# #?????????????? | | ??????????????# ##?????????????? | | ??????????????## = ##??###????????? | | ???????????????# ## #?## ##??###??? | | ???????????????#####?## ### #### ##?? | | ??????????????????????## ## #?? | | ???????????????????????# ### ##? | | ???????????????????????# #?## ## | | ???????????????????????# ## R#### # | | ???????????????????????#####R R#" | | ???????????????????????????# ### | | ???????????????????????????# #?## | | ??????????????????????????# R#??##### | | ??????????????????????????## #??????# | | ??????????????????????????? ??????# | | ?????????????????????????? ?????# ##### | | ??????????????????????????# ???? #???# | | ??????????????????????????### ??? ######???? | | ????????????????????????????? ???? #?????????? | | ???????????????????????????????????##??????????? | | ???????????????????????????????????????????????? | | ???????????????????????????????????????????????? | | ???????????????????????????????????????????????? | | ???????????????????????????????????????????????? | +----------------------------------------------------+ Best States ------------- Heat Dissipation 39 Energy Generation 18 Energy Capacity 160 Matter Stores 300 Matter Capacity 300 Sight Range 16 Terrain Scan Range 14 Terrain Scan Density 10 Armor Coverage 800 Evasion (%) 55 Recoil Reduction 1 Item Schematics ----------------- None Robot Schematics ------------------ None Fabricated ------------ Nothing Repaired ---------- Nothing Studied --------- None Alien Tech Used ----------------- None Achievements -------------- Survival Of The Most Covered Challenges ------------ None Game ------ Seed MomentumNodeJets Manual? 0 Play Time 00:27:35 Cumulative 84.6 hours Start 2026.02.13 @ 07:32:14 End 2026.02.13 @ 07:58:53 Sessions 1 Manual Loads 0 Difficulty Rogue Special Mode None Game No. 100 Rogue 99 Adventurer 1 Explorer 0 Win Type - Total 0 Types 0/0/0/0/0/0/0/0/0/0 Lore% 23 Gallery% 41 Achievement% 29 Wizard Run 0 Options --------- Layout 0 ASCII 0 Keyboard 0 Movement Numpad Keybinds 0 Fullscreen 2 Font 18/SmallcapsGlow Map View 76x50 Zoom Use 0% Tactical HUD 1 Map Filters NONE Filters NONE Steam 1 RUN: 5da010ba-fe7c-495f-86f4-57493e39b322